[Event "Titled Tuesday Blitz January 03 Early 2023"]
[White "Kaminski, Victor"]
[Black "Vargas, Mauricio"]
[WhiteFideId "1131630"]
[BlackFideId "4404572"]
[WhiteElo "2247"]
[BlackElo "2035"]
[Result "1-0"]
[Round "04"]
[TimeControl "180+2"]
[Date "2023.01.03"]
[WhiteClock "0:00:40"]
[BlackClock "0:00:15"]

1. e4 {[%clk 0:03:00]}  c6 {[%clk 0:02:57]} 2. Nf3 {[%clk 0:03:00]}  d5 {[%clk 0:02:58]} 3. d3 {[%clk 0:03:00]}  e6 {[%clk 0:02:56]} 4. Nc3 {[%clk 0:02:56]}  d4 {[%clk 0:02:55]} 5. Ne2 {[%clk 0:02:55]}  c5 {[%clk 0:02:55]} 6. c3 {[%clk 0:02:51]}  Nc6 {[%clk 0:02:54]} 7. cxd4 {[%clk 0:02:51]}  cxd4 {[%clk 0:02:54]} 8. g4 {[%clk 0:02:48]}  e5 {[%clk 0:02:54]} 9. Rg1 {[%clk 0:02:45]}  f6 {[%clk 0:02:52]} 10. g5 {[%clk 0:02:43]}  Be6 {[%clk 0:02:34]} 11. a3 {[%clk 0:02:37]}  Qa5+ {[%clk 0:02:30]} 12. Bd2 {[%clk 0:02:36]}  Qb6 {[%clk 0:02:29]} 13. b4 {[%clk 0:02:31]}  O-O-O {[%clk 0:02:16]} 14. Nc1 {[%clk 0:02:23]}  Kb8 {[%clk 0:02:15]} 15. Rb1 {[%clk 0:02:16]}  f5 {[%clk 0:02:06]} 16. exf5 {[%clk 0:02:08]}  Bxf5 {[%clk 0:02:03]} 17. Qe2 {[%clk 0:02:07]}  Bd6 {[%clk 0:02:01]} 18. Nh4 {[%clk 0:02:02]}  Be6 {[%clk 0:01:56]} 19. Bg2 {[%clk 0:02:01]}  Nge7 {[%clk 0:01:53]} 20. Nb3 {[%clk 0:01:52]}  Rhf8 {[%clk 0:01:50]} 21. Be4 {[%clk 0:01:48]}  g6 {[%clk 0:01:48]} 22. f3 {[%clk 0:01:33]}  Nd5 {[%clk 0:01:45]} 23. Kf2 {[%clk 0:01:31]}  Nf4 {[%clk 0:01:40]} 24. Bxf4 {[%clk 0:01:31]}  Rxf4 {[%clk 0:01:37]} 25. Ng2 {[%clk 0:01:31]}  Rf7 {[%clk 0:01:36]} 26. Nc5 {[%clk 0:01:26]}  Bf5 {[%clk 0:01:29]} 27. Rgc1 {[%clk 0:01:21]}  Rdf8 {[%clk 0:01:23]} 28. Bxc6 {[%clk 0:00:51]}  bxc6 {[%clk 0:01:03]} 29. Ne4 {[%clk 0:00:51]}  Be7 {[%clk 0:00:59]} 30. Kg1 {[%clk 0:00:45]}  Bxe4 {[%clk 0:00:54]} 31. Qxe4 {[%clk 0:00:46]}  Rc8 {[%clk 0:00:47]} 32. Qxe5+ {[%clk 0:00:46]}  Ka8 {[%clk 0:00:43]} 33. Qe6 {[%clk 0:00:46]}  Rcf8 {[%clk 0:00:33]} 34. Rxc6 {[%clk 0:00:43]}  Qb7 {[%clk 0:00:28]} 35. Rbc1 {[%clk 0:00:41]}  Bxg5 {[%clk 0:00:22]} 36. Rc8+ {[%clk 0:00:40]}  Rxc8 {[%clk 0:00:20]} 37. Rxc8+ {[%clk 0:00:41]}  Qb8 {[%clk 0:00:15]} 38. Rxb8+ {[%clk 0:00:39]}  Kxb8 {[%clk 0:00:15]} 39. Qxf7 {[%clk 0:00:40]} 1-0


[Site "https://www.chess.com"]

[Event "Titled Tuesday Blitz January 03 Early 2023"]
[White "Mohammadian, Mohammad"]
[Black "Wieczorek, Zbigniew"]
[WhiteFideId "12566055"]
[BlackFideId "1102001"]
[WhiteElo "1398"]
[BlackElo "2150"]
[Result "0-1"]
[Round "04"]
[TimeControl "180+2"]
[Date "2023.01.03"]
[WhiteClock "0:01:18"]
[BlackClock "0:01:59"]

1. e4 {[%clk 0:03:00]}  g6 {[%clk 0:02:59]} 2. d4 {[%clk 0:02:59]}  Bg7 {[%clk 0:02:59]} 3. Be3 {[%clk 0:02:59]}  d6 {[%clk 0:02:59]} 4. h3 {[%clk 0:02:57]}  Nf6 {[%clk 0:02:59]} 5. Bd3 {[%clk 0:02:56]}  O-O {[%clk 0:02:57]} 6. Nf3 {[%clk 0:02:56]}  Nc6 {[%clk 0:02:56]} 7. c3 {[%clk 0:02:55]}  e5 {[%clk 0:02:57]} 8. d5 {[%clk 0:02:51]}  Ne7 {[%clk 0:02:55]} 9. Qd2 {[%clk 0:02:51]}  Nexd5 {[%clk 0:02:55]} 10. exd5 {[%clk 0:02:46]}  e4 {[%clk 0:02:56]} 11. Be2 {[%clk 0:02:41]}  exf3 {[%clk 0:02:56]} 12. Bxf3 {[%clk 0:02:41]}  Re8 {[%clk 0:02:54]} 13. O-O {[%clk 0:02:41]}  Ne4 {[%clk 0:02:54]} 14. Bxe4 {[%clk 0:02:38]}  Rxe4 {[%clk 0:02:55]} 15. Re1 {[%clk 0:02:35]}  Qe8 {[%clk 0:02:52]} 16. Na3 {[%clk 0:02:31]}  Bf5 {[%clk 0:02:49]} 17. Bd4 {[%clk 0:02:31]}  Bxd4 {[%clk 0:02:47]} 18. Rxe4 {[%clk 0:02:30]}  Qxe4 {[%clk 0:02:45]} 19. Qxd4 {[%clk 0:02:27]}  Qxd4 {[%clk 0:02:44]} 20. cxd4 {[%clk 0:02:27]}  a6 {[%clk 0:02:43]} 21. Nc4 {[%clk 0:02:27]}  Re8 {[%clk 0:02:34]} 22. Ne3 {[%clk 0:02:26]}  Be4 {[%clk 0:02:33]} 23. Rd1 {[%clk 0:02:22]}  f5 {[%clk 0:02:29]} 24. Rc1 {[%clk 0:01:55]}  Re7 {[%clk 0:02:19]} 25. g3 {[%clk 0:01:52]}  Bf3 {[%clk 0:02:14]} 26. b4 {[%clk 0:01:50]}  Kf7 {[%clk 0:02:07]} 27. a4 {[%clk 0:01:48]}  Ke8 {[%clk 0:02:04]} 28. a5 {[%clk 0:01:48]}  Kd8 {[%clk 0:02:04]} 29. Kf1 {[%clk 0:01:46]}  Re4 {[%clk 0:02:03]} 30. Rc4 {[%clk 0:01:32]}  g5 {[%clk 0:02:00]} 31. Kg1 {[%clk 0:01:23]}  f4 {[%clk 0:02:00]} 32. gxf4 {[%clk 0:01:20]}  gxf4 {[%clk 0:02:01]} 33. Nf5 {[%clk 0:01:20]}  Re1+ {[%clk 0:01:58]} 34. Kh2 {[%clk 0:01:18]}  Rh1# {[%clk 0:01:59]} 0-1


[Site "https://www.chess.com"]

[Event "Titled Tuesday Blitz January 03 Early 2023"]
[White "Carlsen, Magnus"]
[Black "Svane, Rasmus"]
[WhiteFideId "1503014"]
[BlackFideId "4657101"]
[WhiteElo "2853"]
[BlackElo "2623"]
[Result "1-0"]
[Round "05"]
[TimeControl "180+2"]
[Date "2023.01.03"]
[WhiteClock "0:00:07"]
[BlackClock "0:00:01"]

1. b3 {[%clk 0:03:00]}  d5 {[%clk 0:02:56]} 2. Bb2 {[%clk 0:03:00]}  Bf5 {[%clk 0:02:57]} 3. Nf3 {[%clk 0:02:58]}  e6 {[%clk 0:02:57]} 4. e3 {[%clk 0:02:58]}  h6 {[%clk 0:02:58]} 5. c4 {[%clk 0:02:55]}  Nf6 {[%clk 0:02:57]} 6. cxd5 {[%clk 0:02:51]}  exd5 {[%clk 0:02:58]} 7. Be2 {[%clk 0:02:51]}  c6 {[%clk 0:02:55]} 8. O-O {[%clk 0:02:52]}  Bd6 {[%clk 0:02:55]} 9. d3 {[%clk 0:02:52]}  O-O {[%clk 0:02:55]} 10. Nbd2 {[%clk 0:02:53]}  Nbd7 {[%clk 0:02:54]} 11. Re1 {[%clk 0:02:53]}  Bh7 {[%clk 0:02:54]} 12. Bf1 {[%clk 0:02:53]}  Re8 {[%clk 0:02:49]} 13. a3 {[%clk 0:02:53]}  a5 {[%clk 0:02:48]} 14. Qc2 {[%clk 0:02:51]}  Ne5 {[%clk 0:02:44]} 15. Nxe5 {[%clk 0:02:38]}  Bxe5 {[%clk 0:02:45]} 16. Bxe5 {[%clk 0:02:37]}  Rxe5 {[%clk 0:02:46]} 17. b4 {[%clk 0:02:38]}  Re8 {[%clk 0:02:14]} 18. Nb3 {[%clk 0:02:37]}  axb4 {[%clk 0:02:12]} 19. axb4 {[%clk 0:02:37]}  Nd7 {[%clk 0:01:56]} 20. Qc3 {[%clk 0:02:33]}  Qe7 {[%clk 0:01:50]} 21. Rxa8 {[%clk 0:02:27]}  Rxa8 {[%clk 0:01:51]} 22. Na5 {[%clk 0:02:27]}  Nf8 {[%clk 0:01:40]} 23. Ra1 {[%clk 0:02:23]}  Qd7 {[%clk 0:01:29]} 24. Nb3 {[%clk 0:02:14]}  Rxa1 {[%clk 0:01:28]} 25. Qxa1 {[%clk 0:02:15]}  b6 {[%clk 0:01:19]} 26. Qa8 {[%clk 0:02:07]}  Bg6 {[%clk 0:01:16]} 27. Qb8 {[%clk 0:02:04]}  b5 {[%clk 0:01:05]} 28. Nd4 {[%clk 0:02:03]}  f6 {[%clk 0:01:00]} 29. Be2 {[%clk 0:01:55]}  Be8 {[%clk 0:00:56]} 30. h4 {[%clk 0:01:55]}  h5 {[%clk 0:00:54]} 31. g3 {[%clk 0:01:45]}  g6 {[%clk 0:00:54]} 32. Bf1 {[%clk 0:01:44]}  Kg7 {[%clk 0:00:54]} 33. Bh3 {[%clk 0:01:41]}  f5 {[%clk 0:00:47]} 34. Qe5+ {[%clk 0:01:37]}  Kf7 {[%clk 0:00:47]} 35. Qh8 {[%clk 0:01:34]}  Qd6 {[%clk 0:00:42]} 36. Nc2 {[%clk 0:01:18]}  Qf6 {[%clk 0:00:43]} 37. Qxf6+ {[%clk 0:01:07]}  Kxf6 {[%clk 0:00:44]} 38. Kf1 {[%clk 0:01:07]}  Ne6 {[%clk 0:00:44]} 39. Ke2 {[%clk 0:01:06]}  Ke5 {[%clk 0:00:44]} 40. Kd2 {[%clk 0:00:58]}  Bd7 {[%clk 0:00:38]} 41. Ne1 {[%clk 0:00:50]}  Kf6 {[%clk 0:00:35]} 42. Kc3 {[%clk 0:00:41]}  Be8 {[%clk 0:00:33]} 43. f4 {[%clk 0:00:40]}  Bd7 {[%clk 0:00:31]} 44. Nf3 {[%clk 0:00:40]}  Be8 {[%clk 0:00:31]} 45. Ne5 {[%clk 0:00:40]}  Ke7 {[%clk 0:00:30]} 46. Bg2 {[%clk 0:00:40]}  Kd6 {[%clk 0:00:25]} 47. Nf3 {[%clk 0:00:39]}  c5 {[%clk 0:00:24]} 48. bxc5+ {[%clk 0:00:37]}  Kxc5 {[%clk 0:00:25]} 49. d4+ {[%clk 0:00:36]}  Kd6 {[%clk 0:00:24]} 50. Kb4 {[%clk 0:00:35]}  Nc7 {[%clk 0:00:20]} 51. Bf1 {[%clk 0:00:31]}  Na6+ {[%clk 0:00:20]} 52. Ka5 {[%clk 0:00:31]}  Nc7 {[%clk 0:00:20]} 53. Ne5 {[%clk 0:00:31]}  Ke6 {[%clk 0:00:19]} 54. Kb6 {[%clk 0:00:27]}  Kd6 {[%clk 0:00:19]} 55. Bd3 {[%clk 0:00:19]}  Na8+ {[%clk 0:00:16]} 56. Ka5 {[%clk 0:00:16]}  Nc7 {[%clk 0:00:16]} 57. Nf3 {[%clk 0:00:15]}  Ke6 {[%clk 0:00:16]} 58. Kb6 {[%clk 0:00:15]}  Kd6 {[%clk 0:00:17]} 59. Nd2 {[%clk 0:00:14]}  Na8+ {[%clk 0:00:17]} 60. Ka5 {[%clk 0:00:13]}  Nc7 {[%clk 0:00:18]} 61. Nb1 {[%clk 0:00:14]}  Bd7 {[%clk 0:00:11]} 62. Nc3 {[%clk 0:00:14]}  Ne8 {[%clk 0:00:06]} 63. Bxb5 {[%clk 0:00:12]}  Nf6 {[%clk 0:00:06]} 64. Kb6 {[%clk 0:00:06]}  Ng4 {[%clk 0:00:05]} 65. Bxd7 {[%clk 0:00:06]}  Kxd7 {[%clk 0:00:06]} 66. Kc5 {[%clk 0:00:02]}  Nxe3 {[%clk 0:00:06]} 67. Nxd5 {[%clk 0:00:03]}  Nf1 {[%clk 0:00:06]} 68. Nb6+ {[%clk 0:00:04]}  Kc7 {[%clk 0:00:05]} 69. Nc4 {[%clk 0:00:03]}  Nxg3 {[%clk 0:00:06]} 70. Ne5 {[%clk 0:00:04]}  Ne4+ {[%clk 0:00:04]} 71. Kd5 {[%clk 0:00:05]}  Nf6+ {[%clk 0:00:05]} 72. Ke6 {[%clk 0:00:05]}  Ne4 {[%clk 0:00:04]} 73. d5 {[%clk 0:00:05]}  Nc5+ {[%clk 0:00:03]} 74. Ke7 {[%clk 0:00:06]}  Ne4 {[%clk 0:00:03]} 75. Nxg6 {[%clk 0:00:06]}  Kb6 {[%clk 0:00:01]} 76. d6 {[%clk 0:00:06]}  Kc6 {[%clk 0:00:01]} 77. d7 {[%clk 0:00:07]} 1-0


[Site "https://www.chess.com"]

[Event "Titled Tuesday Blitz January 03 Early 2023"]
[White "Narayanan, Srinath"]
[Black "Jobava, Baadur"]
[WhiteFideId "5018420"]
[BlackFideId "13601520"]
[WhiteElo "2559"]
[BlackElo "2578"]
[Result "1/2-1/2"]
[Round "05"]
[TimeControl "180+2"]
[Date "2023.01.03"]
[WhiteClock "0:00:08"]
[BlackClock "0:00:11"]

1. d4 {[%clk 0:03:00]}  d5 {[%clk 0:02:59]} 2. Bf4 {[%clk 0:02:59]}  Nf6 {[%clk 0:02:59]} 3. Nf3 {[%clk 0:02:59]}  Bf5 {[%clk 0:02:58]} 4. e3 {[%clk 0:02:59]}  e6 {[%clk 0:02:58]} 5. Nbd2 {[%clk 0:03:00]}  Bd6 {[%clk 0:02:58]} 6. Ne5 {[%clk 0:02:56]}  h6 {[%clk 0:02:56]} 7. Bd3 {[%clk 0:02:53]}  Bxd3 {[%clk 0:02:53]} 8. cxd3 {[%clk 0:02:54]}  Nbd7 {[%clk 0:02:53]} 9. Rc1 {[%clk 0:02:53]}  O-O {[%clk 0:02:53]} 10. O-O {[%clk 0:02:51]}  Qe7 {[%clk 0:02:50]} 11. Qb3 {[%clk 0:02:49]}  Rab8 {[%clk 0:02:49]} 12. h3 {[%clk 0:02:46]}  Rfc8 {[%clk 0:02:47]} 13. Ndf3 {[%clk 0:02:42]}  Nf8 {[%clk 0:02:43]} 14. Qa4 {[%clk 0:02:40]}  a6 {[%clk 0:02:39]} 15. Bg3 {[%clk 0:02:41]}  Ne8 {[%clk 0:02:24]} 16. Bh2 {[%clk 0:02:07]}  f6 {[%clk 0:02:06]} 17. Ng4 {[%clk 0:02:06]}  Qd7 {[%clk 0:01:57]} 18. Qb3 {[%clk 0:01:43]}  h5 {[%clk 0:01:47]} 19. Bxd6 {[%clk 0:01:42]}  hxg4 {[%clk 0:01:44]} 20. Bxf8 {[%clk 0:01:42]}  gxf3 {[%clk 0:01:45]} 21. Ba3 {[%clk 0:01:42]}  fxg2 {[%clk 0:01:44]} 22. Kxg2 {[%clk 0:01:43]}  Kf7 {[%clk 0:01:35]} 23. e4 {[%clk 0:01:34]}  c6 {[%clk 0:01:28]} 24. e5 {[%clk 0:01:27]}  b6 {[%clk 0:01:05]} 25. f4 {[%clk 0:01:20]}  c5 {[%clk 0:01:04]} 26. Rce1 {[%clk 0:01:03]}  Nc7 {[%clk 0:01:03]} 27. Qd1 {[%clk 0:01:01]}  Rh8 {[%clk 0:01:00]} 28. Rf2 {[%clk 0:00:59]}  Nb5 {[%clk 0:00:54]} 29. dxc5 {[%clk 0:00:57]}  Nxa3 {[%clk 0:00:55]} 30. bxa3 {[%clk 0:00:58]}  bxc5 {[%clk 0:00:55]} 31. f5 {[%clk 0:00:58]}  Rb6 {[%clk 0:00:38]} 32. Qg4 {[%clk 0:00:57]}  Rh6 {[%clk 0:00:35]} 33. Kg1 {[%clk 0:00:44]}  exf5 {[%clk 0:00:31]} 34. Qf3 {[%clk 0:00:29]}  f4 {[%clk 0:00:27]} 35. Rh2 {[%clk 0:00:22]}  g5 {[%clk 0:00:13]} 36. exf6 {[%clk 0:00:20]}  Rbxf6 {[%clk 0:00:13]} 37. Rhe2 {[%clk 0:00:16]}  Qxh3 {[%clk 0:00:10]} 38. Qxd5+ {[%clk 0:00:08]}  Re6 {[%clk 0:00:10]} 39. Qd7+ {[%clk 0:00:08]}  Kf8 {[%clk 0:00:10]} 40. Qd8+ {[%clk 0:00:08]}  Kg7 {[%clk 0:00:10]} 41. Qd7+ {[%clk 0:00:08]}  Kf8 {[%clk 0:00:10]} 42. Qd8+ {[%clk 0:00:08]}  Kg7 {[%clk 0:00:11]} 43. Qd7+ {[%clk 0:00:08]}  Kf8 {[%clk 0:00:11]} 1/2-1/2


[Site "https://www.chess.com"]

[Event "Titled Tuesday Blitz January 03 Early 2023"]
[White "Lenderman, Aleksandr"]
[Black "Martinez Alcantara, Jose Eduardo"]
[WhiteFideId "2021285"]
[BlackFideId "3805662"]
[WhiteElo "2572"]
[BlackElo "2619"]
[Result "0-1"]
[Round "05"]
[TimeControl "180+2"]
[Date "2023.01.03"]
[WhiteClock "0:02:07"]
[BlackClock "0:01:55"]

1. d4 {[%clk 0:03:00]}  Nf6 {[%clk 0:02:55]} 2. g3 {[%clk 0:03:01]}  d5 {[%clk 0:02:53]} 3. Bg2 {[%clk 0:03:01]}  c6 {[%clk 0:02:52]} 4. c4 {[%clk 0:02:59]}  g6 {[%clk 0:02:50]} 5. Nf3 {[%clk 0:02:59]}  Bg7 {[%clk 0:02:49]} 6. O-O {[%clk 0:02:59]}  O-O {[%clk 0:02:49]} 7. Qb3 {[%clk 0:02:59]}  dxc4 {[%clk 0:02:46]} 8. Qxc4 {[%clk 0:02:59]}  Be6 {[%clk 0:02:45]} 9. Qa4 {[%clk 0:02:58]}  Nbd7 {[%clk 0:02:43]} 10. Rd1 {[%clk 0:02:57]}  Nb6 {[%clk 0:02:42]} 11. Qa3 {[%clk 0:02:52]}  Qd6 {[%clk 0:02:41]} 12. b3 {[%clk 0:02:48]}  Rfd8 {[%clk 0:02:40]} 13. Bf4 {[%clk 0:02:46]}  Qxa3 {[%clk 0:02:39]} 14. Nxa3 {[%clk 0:02:47]}  Nbd5 {[%clk 0:02:37]} 15. Bd2 {[%clk 0:02:45]}  Ne4 {[%clk 0:02:37]} 16. Rac1 {[%clk 0:02:42]}  Nxd2 {[%clk 0:02:37]} 17. Rxd2 {[%clk 0:02:43]}  Bh6 {[%clk 0:02:36]} 18. e3 {[%clk 0:02:41]}  Nxe3 {[%clk 0:02:36]} 19. fxe3 {[%clk 0:02:40]}  Bxe3+ {[%clk 0:02:37]} 20. Kf1 {[%clk 0:02:40]}  Bxd2 {[%clk 0:02:25]} 21. Nxd2 {[%clk 0:02:41]}  Rxd4 {[%clk 0:02:25]} 22. Nf3 {[%clk 0:02:41]}  Rd5 {[%clk 0:02:18]} 23. Nc4 {[%clk 0:02:40]}  Rad8 {[%clk 0:02:17]} 24. Kf2 {[%clk 0:02:37]}  Rc5 {[%clk 0:02:14]} 25. Re1 {[%clk 0:02:22]}  Bxc4 {[%clk 0:02:13]} 26. bxc4 {[%clk 0:02:22]}  Rxc4 {[%clk 0:02:08]} 27. Rxe7 {[%clk 0:02:21]}  Rc2+ {[%clk 0:02:09]} 28. Kf1 {[%clk 0:02:18]}  Rxa2 {[%clk 0:02:01]} 29. Ne1 {[%clk 0:02:10]}  Rd1 {[%clk 0:01:56]} 30. Bf3 {[%clk 0:02:07]}  Rb1 {[%clk 0:01:55]} 0-1


[Site "https://www.chess.com"]

[Event "Titled Tuesday Blitz January 03 Early 2023"]
[White "Ter-Sahakyan, Samvel"]
[Black "Bluebaum, Matthias"]
[WhiteFideId "13302531"]
[BlackFideId "24651516"]
[WhiteElo "2617"]
[BlackElo "2669"]
[Result "1-0"]
[Round "05"]
[TimeControl "180+2"]
[Date "2023.01.03"]
[WhiteClock "0:01:16"]
[BlackClock "0:00:25"]

1. d4 {[%clk 0:03:00]}  d5 {[%clk 0:02:59]} 2. c4 {[%clk 0:03:00]}  e6 {[%clk 0:02:59]} 3. Nf3 {[%clk 0:03:01]}  Nf6 {[%clk 0:02:57]} 4. Nc3 {[%clk 0:03:01]}  Bb4 {[%clk 0:02:56]} 5. Bg5 {[%clk 0:03:00]}  h6 {[%clk 0:02:57]} 6. Bd2 {[%clk 0:03:00]}  O-O {[%clk 0:02:52]} 7. g4 {[%clk 0:02:59]}  Bxc3 {[%clk 0:02:48]} 8. Bxc3 {[%clk 0:02:56]}  Ne4 {[%clk 0:02:48]} 9. Qc2 {[%clk 0:02:52]}  Nc6 {[%clk 0:02:38]} 10. h4 {[%clk 0:02:48]}  f5 {[%clk 0:02:29]} 11. g5 {[%clk 0:02:44]}  hxg5 {[%clk 0:02:21]} 12. hxg5 {[%clk 0:02:44]}  Nxg5 {[%clk 0:02:22]} 13. O-O-O {[%clk 0:02:38]}  Ne4 {[%clk 0:02:20]} 14. e3 {[%clk 0:02:30]}  Bd7 {[%clk 0:02:16]} 15. Bd3 {[%clk 0:02:22]}  Qf6 {[%clk 0:02:03]} 16. Rdg1 {[%clk 0:02:20]}  Be8 {[%clk 0:01:41]} 17. Ne5 {[%clk 0:02:12]}  Nxc3 {[%clk 0:01:29]} 18. Qxc3 {[%clk 0:02:07]}  Nxe5 {[%clk 0:01:24]} 19. dxe5 {[%clk 0:02:08]}  Qe7 {[%clk 0:01:25]} 20. Qd4 {[%clk 0:01:52]}  dxc4 {[%clk 0:01:23]} 21. Bxc4 {[%clk 0:01:47]}  Bc6 {[%clk 0:01:21]} 22. Rh6 {[%clk 0:01:46]}  Bd5 {[%clk 0:00:52]} 23. Bxd5 {[%clk 0:01:34]}  exd5 {[%clk 0:00:53]} 24. Qxd5+ {[%clk 0:01:27]}  Rf7 {[%clk 0:00:49]} 25. Qh1 {[%clk 0:01:27]}  Qc5+ {[%clk 0:00:29]} 26. Kb1 {[%clk 0:01:26]}  Rff8 {[%clk 0:00:25]} 27. e6 {[%clk 0:01:16]} 1-0


[Site "https://www.chess.com"]

[Event "Titled Tuesday Blitz January 03 Early 2023"]
[White "Xiong, Jeffery"]
[Black "Donchenko, Alexander"]
[WhiteFideId "2047640"]
[BlackFideId "24603295"]
[WhiteElo "2692"]
[BlackElo "2669"]
[Result "1-0"]
[Round "05"]
[TimeControl "180+2"]
[Date "2023.01.03"]
[WhiteClock "0:01:22"]
[BlackClock "0:01:04"]

1. e4 {[%clk 0:02:54]}  c6 {[%clk 0:02:30]} 2. d4 {[%clk 0:02:55]}  d5 {[%clk 0:02:31]} 3. exd5 {[%clk 0:02:56]}  cxd5 {[%clk 0:02:32]} 4. c4 {[%clk 0:02:56]}  Nf6 {[%clk 0:02:32]} 5. Nc3 {[%clk 0:02:57]}  Nc6 {[%clk 0:02:32]} 6. Nf3 {[%clk 0:02:56]}  Bg4 {[%clk 0:02:32]} 7. cxd5 {[%clk 0:02:55]}  Nxd5 {[%clk 0:02:33]} 8. Qb3 {[%clk 0:02:55]}  Bxf3 {[%clk 0:02:33]} 9. gxf3 {[%clk 0:02:53]}  Nb6 {[%clk 0:02:28]} 10. d5 {[%clk 0:02:41]}  Nd4 {[%clk 0:02:28]} 11. Qd1 {[%clk 0:02:42]}  e5 {[%clk 0:02:27]} 12. dxe6 {[%clk 0:02:42]}  fxe6 {[%clk 0:02:27]} 13. Be3 {[%clk 0:02:42]}  Bc5 {[%clk 0:02:24]} 14. Bb5+ {[%clk 0:02:12]}  Nxb5 {[%clk 0:02:22]} 15. Qxd8+ {[%clk 0:02:11]}  Rxd8 {[%clk 0:02:20]} 16. Nxb5 {[%clk 0:02:11]}  Bxe3 {[%clk 0:02:16]} 17. fxe3 {[%clk 0:02:12]}  a6 {[%clk 0:02:16]} 18. Nd4 {[%clk 0:01:58]}  Ke7 {[%clk 0:02:01]} 19. Rc1 {[%clk 0:01:57]}  Rc8 {[%clk 0:01:58]} 20. Ke2 {[%clk 0:01:57]}  Nd5 {[%clk 0:01:51]} 21. a3 {[%clk 0:01:55]}  g6 {[%clk 0:01:50]} 22. Kd3 {[%clk 0:01:53]}  Kd6 {[%clk 0:01:48]} 23. Ne2 {[%clk 0:01:50]}  Rhf8 {[%clk 0:01:45]} 24. Rxc8 {[%clk 0:01:44]}  Rxc8 {[%clk 0:01:46]} 25. Ng3 {[%clk 0:01:45]}  Rf8 {[%clk 0:01:41]} 26. Ke2 {[%clk 0:01:44]}  Rc8 {[%clk 0:01:40]} 27. Kd3 {[%clk 0:01:45]}  Rf8 {[%clk 0:01:37]} 28. Ne4+ {[%clk 0:01:45]}  Ke5 {[%clk 0:01:34]} 29. Ke2 {[%clk 0:01:46]}  Rc8 {[%clk 0:01:33]} 30. Kd3 {[%clk 0:01:46]}  Rf8 {[%clk 0:01:32]} 31. f4+ {[%clk 0:01:45]}  Kf5 {[%clk 0:01:28]} 32. Rg1 {[%clk 0:01:38]}  Nb4+ {[%clk 0:01:22]} 33. axb4 {[%clk 0:01:24]}  Rd8+ {[%clk 0:01:23]} 34. Ke2 {[%clk 0:01:25]}  Kxe4 {[%clk 0:01:24]} 35. Rc1 {[%clk 0:01:24]}  Rd7 {[%clk 0:01:08]} 36. Rc5 {[%clk 0:01:22]}  Rd5 {[%clk 0:01:04]} 37. Rc4+ {[%clk 0:01:22]} 1-0


[Site "https://www.chess.com"]

[Event "Titled Tuesday Blitz January 03 Early 2023"]
[White "Suleymanli, Suleyman"]
[Black "Vokhidov, Shamsiddin"]
[WhiteFideId "13416375"]
[BlackFideId "14204223"]
[WhiteElo "2269"]
[BlackElo "2586"]
[Result "0-1"]
[Round "05"]
[TimeControl "180+2"]
[Date "2023.01.03"]
[WhiteClock "0:00:02"]
[BlackClock "0:01:16"]

1. Nf3 {[%clk 0:03:00]}  d5 {[%clk 0:02:59]} 2. g3 {[%clk 0:03:01]}  Nc6 {[%clk 0:03:00]} 3. d4 {[%clk 0:03:00]}  Bf5 {[%clk 0:03:00]} 4. Bg2 {[%clk 0:03:01]}  Nb4 {[%clk 0:03:00]} 5. Na3 {[%clk 0:02:58]}  e6 {[%clk 0:03:00]} 6. O-O {[%clk 0:02:56]}  Nf6 {[%clk 0:03:00]} 7. c4 {[%clk 0:02:52]}  c6 {[%clk 0:02:58]} 8. Nh4 {[%clk 0:02:47]}  Bg4 {[%clk 0:02:57]} 9. c5 {[%clk 0:02:36]}  Be7 {[%clk 0:02:54]} 10. Bd2 {[%clk 0:02:20]}  a5 {[%clk 0:02:52]} 11. Nc2 {[%clk 0:02:11]}  Bxe2 {[%clk 0:02:43]} 12. Qxe2 {[%clk 0:02:07]}  Nxc2 {[%clk 0:02:43]} 13. Rad1 {[%clk 0:01:45]}  Nxd4 {[%clk 0:02:42]} 14. Qd3 {[%clk 0:01:44]}  Bxc5 {[%clk 0:02:35]} 15. Bf4 {[%clk 0:01:39]}  Nb5 {[%clk 0:02:28]} 16. Nf3 {[%clk 0:01:30]}  O-O {[%clk 0:02:25]} 17. b3 {[%clk 0:01:25]}  Ne4 {[%clk 0:02:22]} 18. Ne5 {[%clk 0:01:21]}  Nbd6 {[%clk 0:02:16]} 19. Qc2 {[%clk 0:01:09]}  Ba7 {[%clk 0:02:11]} 20. Nc4 {[%clk 0:01:03]}  f6 {[%clk 0:01:43]} 21. Nxd6 {[%clk 0:00:33]}  Nxd6 {[%clk 0:01:43]} 22. Rfe1 {[%clk 0:00:32]}  e5 {[%clk 0:01:42]} 23. Bc1 {[%clk 0:00:32]}  Qe7 {[%clk 0:01:40]} 24. Ba3 {[%clk 0:00:31]}  Rfd8 {[%clk 0:01:37]} 25. Bxd5+ {[%clk 0:00:22]}  cxd5 {[%clk 0:01:36]} 26. Rxd5 {[%clk 0:00:23]}  Qe6 {[%clk 0:01:35]} 27. Red1 {[%clk 0:00:19]}  Nf7 {[%clk 0:01:35]} 28. Rxd8+ {[%clk 0:00:18]}  Rxd8 {[%clk 0:01:36]} 29. Rxd8+ {[%clk 0:00:18]}  Nxd8 {[%clk 0:01:36]} 30. Qc7 {[%clk 0:00:19]}  Qb6 {[%clk 0:01:20]} 31. Qc4+ {[%clk 0:00:16]}  Kh8 {[%clk 0:01:20]} 32. Qe2 {[%clk 0:00:04]}  Ne6 {[%clk 0:01:19]} 33. Kg2 {[%clk 0:00:03]}  Qc6+ {[%clk 0:01:17]} 34. Kg1 {[%clk 0:00:02]}  Nd4 {[%clk 0:01:16]} 0-1


[Site "https://www.chess.com"]